{"text_format":"1","workbook":"xlsx","n_sheets":2,"sheets":["List1","List2"],"not_rendered":{"charts":0,"images":0,"macros":1,"external_links":0,"defined_names":3,"comments":0,"pivot_tables":0},"unopened":[],"bounds":{"document_bytes":16777216,"sheet_cells":100000,"rows_first":2000,"rows_last":500,"rows_between":2000,"halvings":0,"cell_chars":16384,"cell_head_chars":4096},"cells_cut":0,"cells_raw":0,"read":"whole","date_system":"1900"}

{"sheet":"List1","index":0,"n_rows":24,"n_cols":11,"rows_kept":24,"cut":false,"hidden":false,"merged":[]}
["aaaaaa","bbbbbb","cccccccc","ddddddd",null,null,{"$f":"IFERROR(INDEX(OBLAST,MOD(SMALL(POZICIE,ROW(A1)),1000000),INT(SMALL(POZICIE,ROW(A1))/1000000)),\"\")","v":"xxxaaa"},null,null,"Hľadaj","Počet"]
["aaaaaa","bbbbbb","cccccccc","ddddddd",null,null,{"$f":"IFERROR(INDEX(OBLAST,MOD(SMALL(POZICIE,ROW(A2)),1000000),INT(SMALL(POZICIE,ROW(A2))/1000000)),\"\")","v":"aaaxxx"},null,null,"xxx",{"$f":"COUNTIF(OBLAST,\"*\"&HLADAT&\"*\")","v":5}]
["xxxaaa","bbbbbb","cccccccc","dxxxddd",null,null,{"$f":"IFERROR(INDEX(OBLAST,MOD(SMALL(POZICIE,ROW(A3)),1000000),INT(SMALL(POZICIE,ROW(A3))/1000000)),\"\")","v":"bbxxxb"}]
["aaaaaa","bbbbbb","cccccccc","ddddddd",null,null,{"$f":"IFERROR(INDEX(OBLAST,MOD(SMALL(POZICIE,ROW(A4)),1000000),INT(SMALL(POZICIE,ROW(A4))/1000000)),\"\")","v":"ccccxxxc"}]
["aaaaaa","bbbbbb","cccccccc","ddddddd",null,null,{"$f":"IFERROR(INDEX(OBLAST,MOD(SMALL(POZICIE,ROW(A5)),1000000),INT(SMALL(POZICIE,ROW(A5))/1000000)),\"\")","v":"dxxxddd"}]
["aaaaaa","bbxxxb","cccccccc","ddddddd",null,null,{"$f":"IFERROR(INDEX(OBLAST,MOD(SMALL(POZICIE,ROW(A6)),1000000),INT(SMALL(POZICIE,ROW(A6))/1000000)),\"\")","v":""}]
["aaaaaa","bbbbbb","cccccccc","ddddddd",null,null,{"$f":"IFERROR(INDEX(OBLAST,MOD(SMALL(POZICIE,ROW(A7)),1000000),INT(SMALL(POZICIE,ROW(A7))/1000000)),\"\")","v":""}]
["aaaaaa","bbbbbb","cccccccc","ddddddd",null,null,{"$f":"IFERROR(INDEX(OBLAST,MOD(SMALL(POZICIE,ROW(A8)),1000000),INT(SMALL(POZICIE,ROW(A8))/1000000)),\"\")","v":""}]
["aaaaaa","bbbbbb","cccccccc","ddddddd",null,null,{"$f":"IFERROR(INDEX(OBLAST,MOD(SMALL(POZICIE,ROW(A9)),1000000),INT(SMALL(POZICIE,ROW(A9))/1000000)),\"\")","v":""}]
["aaaaaa","bbbbbb","cccccccc","ddddddd",null,null,{"$f":"IFERROR(INDEX(OBLAST,MOD(SMALL(POZICIE,ROW(A10)),1000000),INT(SMALL(POZICIE,ROW(A10))/1000000)),\"\")","v":""}]
["aaaaaa","bbbbbb","cccccccc","ddddddd",null,null,{"$f":"IFERROR(INDEX(OBLAST,MOD(SMALL(POZICIE,ROW(A11)),1000000),INT(SMALL(POZICIE,ROW(A11))/1000000)),\"\")","v":""}]
["aaaaaa","bbbbbb","cccccccc","ddddddd",null,null,{"$f":"IFERROR(INDEX(OBLAST,MOD(SMALL(POZICIE,ROW(A12)),1000000),INT(SMALL(POZICIE,ROW(A12))/1000000)),\"\")","v":""}]
["aaaxxx","bbbbbb","ccccxxxc","ddddddd",null,null,{"$f":"IFERROR(INDEX(OBLAST,MOD(SMALL(POZICIE,ROW(A13)),1000000),INT(SMALL(POZICIE,ROW(A13))/1000000)),\"\")","v":""}]
["aaaaaa","bbbbbb","cccccccc","ddddddd",null,null,{"$f":"IFERROR(INDEX(OBLAST,MOD(SMALL(POZICIE,ROW(A14)),1000000),INT(SMALL(POZICIE,ROW(A14))/1000000)),\"\")","v":""}]
["aaaaaa","bbbbbb","cccccccc","ddddddd",null,null,{"$f":"IFERROR(INDEX(OBLAST,MOD(SMALL(POZICIE,ROW(A15)),1000000),INT(SMALL(POZICIE,ROW(A15))/1000000)),\"\")","v":""}]
["aaaaaa","bbbbbb","cccccccc","ddddddd",null,null,{"$f":"IFERROR(INDEX(OBLAST,MOD(SMALL(POZICIE,ROW(A16)),1000000),INT(SMALL(POZICIE,ROW(A16))/1000000)),\"\")","v":""}]
["aaaaaa","bbbbbb","cccccccc","ddddddd",null,null,{"$f":"IFERROR(INDEX(OBLAST,MOD(SMALL(POZICIE,ROW(A17)),1000000),INT(SMALL(POZICIE,ROW(A17))/1000000)),\"\")","v":""}]
["aaaaaa","bbbbbb","cccccccc","ddddddd",null,null,{"$f":"IFERROR(INDEX(OBLAST,MOD(SMALL(POZICIE,ROW(A18)),1000000),INT(SMALL(POZICIE,ROW(A18))/1000000)),\"\")","v":""}]
["aaaaaa","bbbbbb","cccccccc","ddddddd",null,null,{"$f":"IFERROR(INDEX(OBLAST,MOD(SMALL(POZICIE,ROW(A19)),1000000),INT(SMALL(POZICIE,ROW(A19))/1000000)),\"\")","v":""}]
["aaaaaa","bbbbbb","cccccccc","ddddddd",null,null,{"$f":"IFERROR(INDEX(OBLAST,MOD(SMALL(POZICIE,ROW(A20)),1000000),INT(SMALL(POZICIE,ROW(A20))/1000000)),\"\")","v":""}]
["aaaaaa","bbbbbb","cccccccc","ddddddd",null,null,{"$f":"IFERROR(INDEX(OBLAST,MOD(SMALL(POZICIE,ROW(A21)),1000000),INT(SMALL(POZICIE,ROW(A21))/1000000)),\"\")","v":""}]
["aaaaaa","bbbbbb","cccccccc","ddddddd",null,null,{"$f":"IFERROR(INDEX(OBLAST,MOD(SMALL(POZICIE,ROW(A22)),1000000),INT(SMALL(POZICIE,ROW(A22))/1000000)),\"\")","v":""}]
["aaaaaa","bbbbbb","cccccccc","ddddddd",null,null,{"$f":"IFERROR(INDEX(OBLAST,MOD(SMALL(POZICIE,ROW(A23)),1000000),INT(SMALL(POZICIE,ROW(A23))/1000000)),\"\")","v":""}]
["aaaaaa","bbbbbb","cccccccc","ddddddd",null,null,{"$f":"IFERROR(INDEX(OBLAST,MOD(SMALL(POZICIE,ROW(A24)),1000000),INT(SMALL(POZICIE,ROW(A24))/1000000)),\"\")","v":""}]

{"sheet":"List2","index":1,"n_rows":24,"n_cols":11,"rows_kept":24,"cut":false,"hidden":false,"merged":[]}
["aaaaaa","bbbbbb","cccccccc","ddddddd",null,null,"xxxaaa",null,null,"Hľadaj","Počet"]
["aaaaaa","bbbbbb","cccccccc","ddddddd",null,null,"aaaxxx",null,null,"xxx",5]
["xxxaaa","bbbbbb","cccccccc","dxxxddd",null,null,"bbxxxb"]
["aaaaaa","bbbbbb","cccccccc","ddddddd",null,null,"ccccxxxc"]
["aaaaaa","bbbbbb","cccccccc","ddddddd",null,null,"dxxxddd"]
["aaaaaa","bbxxxb","cccccccc","ddddddd"]
["aaaaaa","bbbbbb","cccccccc","ddddddd"]
["aaaaaa","bbbbbb","cccccccc","ddddddd"]
["aaaaaa","bbbbbb","cccccccc","ddddddd"]
["aaaaaa","bbbbbb","cccccccc","ddddddd"]
["aaaaaa","bbbbbb","cccccccc","ddddddd"]
["aaaaaa","bbbbbb","cccccccc","ddddddd"]
["aaaxxx","bbbbbb","ccccxxxc","ddddddd"]
["aaaaaa","bbbbbb","cccccccc","ddddddd"]
["aaaaaa","bbbbbb","cccccccc","ddddddd"]
["aaaaaa","bbbbbb","cccccccc","ddddddd"]
["aaaaaa","bbbbbb","cccccccc","ddddddd"]
["aaaaaa","bbbbbb","cccccccc","ddddddd"]
["aaaaaa","bbbbbb","cccccccc","ddddddd"]
["aaaaaa","bbbbbb","cccccccc","ddddddd"]
["aaaaaa","bbbbbb","cccccccc","ddddddd"]
["aaaaaa","bbbbbb","cccccccc","ddddddd"]
["aaaaaa","bbbbbb","cccccccc","ddddddd"]
["aaaaaa","bbbbbb","cccccccc","ddddddd"]